[Event "Titled Tuesday Blitz July 4 Early 2023"]
[White "Borgaonkar Akshay"]
[Black "Lopez Del Alamo, Antonio"]
[WhiteFideId "25639110"]
[BlackFideId "2227339"]
[WhiteElo "2615"]
[BlackElo "2320"]
[Result "1-0"]
[Round "1"]
[TimeControl "180+2"]
[Date "2023.07.04"]
[WhiteClock "0:00:54"]
[BlackClock "0:00:17"]
[Board "157"]

1. c4 {[%clk 0:02:57]}  Nf6 {[%clk 0:02:59]} 2. Nf3 {[%clk 0:02:57]}  g6 {[%clk 0:02:59]} 3. b3 {[%clk 0:02:56]}  Bg7 {[%clk 0:02:58]} 4. Bb2 {[%clk 0:02:57]}  O-O {[%clk 0:02:58]} 5. g3 {[%clk 0:02:58]}  d6 {[%clk 0:02:57]} 6. Bg2 {[%clk 0:02:58]}  Nbd7 {[%clk 0:02:57]} 7. O-O {[%clk 0:02:59]}  c6 {[%clk 0:02:57]} 8. d3 {[%clk 0:02:58]}  Qc7 {[%clk 0:02:55]} 9. Nc3 {[%clk 0:02:58]}  e5 {[%clk 0:02:53]} 10. b4 {[%clk 0:02:57]}  Re8 {[%clk 0:02:51]} 11. b5 {[%clk 0:02:57]}  Nc5 {[%clk 0:02:48]} 12. Nd2 {[%clk 0:02:55]}  Be6 {[%clk 0:02:16]} 13. Nb3 {[%clk 0:02:53]}  Nfd7 {[%clk 0:02:15]} 14. Nxc5 {[%clk 0:02:50]}  Nxc5 {[%clk 0:02:14]} 15. Ba3 {[%clk 0:02:47]}  f5 {[%clk 0:02:09]} 16. Rb1 {[%clk 0:02:44]}  Bf7 {[%clk 0:01:54]} 17. Na4 {[%clk 0:02:43]}  Nxa4 {[%clk 0:01:48]} 18. Qxa4 {[%clk 0:02:44]}  c5 {[%clk 0:01:47]} 19. Qb3 {[%clk 0:02:37]}  Rad8 {[%clk 0:01:43]} 20. b6 {[%clk 0:02:36]}  Qb8 {[%clk 0:01:35]} 21. bxa7 {[%clk 0:02:25]}  Qxa7 {[%clk 0:01:36]} 22. Bb2 {[%clk 0:02:24]}  Ra8 {[%clk 0:01:32]} 23. a3 {[%clk 0:02:20]}  Rab8 {[%clk 0:01:30]} 24. Bc3 {[%clk 0:02:18]}  b5 {[%clk 0:01:30]} 25. Qc2 {[%clk 0:01:54]}  bxc4 {[%clk 0:01:25]} 26. dxc4 {[%clk 0:01:55]}  Qxa3 {[%clk 0:01:20]} 27. Ra1 {[%clk 0:01:31]}  Qb3 {[%clk 0:01:19]} 28. Qd2 {[%clk 0:01:32]}  Qxc4 {[%clk 0:01:13]} 29. Rfc1 {[%clk 0:01:16]}  Qe6 {[%clk 0:01:06]} 30. Ra6 {[%clk 0:01:14]}  Red8 {[%clk 0:01:05]} 31. Ra7 {[%clk 0:01:12]}  e4 {[%clk 0:01:02]} 32. Bxg7 {[%clk 0:01:09]}  Kxg7 {[%clk 0:01:03]} 33. e3 {[%clk 0:01:09]}  Rd7 {[%clk 0:00:58]} 34. Rxd7 {[%clk 0:01:07]}  Qxd7 {[%clk 0:00:59]} 35. Rxc5 {[%clk 0:01:08]}  dxc5 {[%clk 0:01:00]} 36. Qxd7 {[%clk 0:01:07]}  Rb1+ {[%clk 0:01:00]} 37. Bf1 {[%clk 0:01:07]}  c4 {[%clk 0:00:58]} 38. Kg2 {[%clk 0:01:05]}  Rc1 {[%clk 0:00:54]} 39. Qd4+ {[%clk 0:01:00]}  Kg8 {[%clk 0:00:53]} 40. Qb2 {[%clk 0:01:01]}  Rd1 {[%clk 0:00:48]} 41. Qc3 {[%clk 0:00:56]}  h5 {[%clk 0:00:38]} 42. Bxc4 {[%clk 0:00:53]}  Bxc4 {[%clk 0:00:38]} 43. Qxc4+ {[%clk 0:00:54]}  Kg7 {[%clk 0:00:39]} 44. Qc7+ {[%clk 0:00:54]}  Kh6 {[%clk 0:00:39]} 45. Qc8 {[%clk 0:00:55]}  Kg7 {[%clk 0:00:36]} 46. Kh3 {[%clk 0:00:55]}  Rd2 {[%clk 0:00:17]} 47. Qc3+ {[%clk 0:00:54]} 1-0


[Site "https://www.chess.com"]

[Event "Titled Tuesday Blitz July 4 Early 2023"]
[White "Skliarov, Viktor"]
[Black "Juknis, Paulius"]
[WhiteFideId "14106736"]
[BlackFideId "12802247"]
[WhiteElo "2608"]
[BlackElo "2312"]
[Result "1-0"]
[Round "1"]
[TimeControl "180+2"]
[Date "2023.07.04"]
[WhiteClock "0:00:46"]
[BlackClock "0:01:05"]
[Board "163"]

1. e4 {[%clk 0:01:55]}  c5 {[%clk 0:02:59]} 2. Nf3 {[%clk 0:01:55]}  Nc6 {[%clk 0:02:59]} 3. Bb5 {[%clk 0:01:54]}  Nf6 {[%clk 0:02:59]} 4. Bxc6 {[%clk 0:01:54]}  dxc6 {[%clk 0:02:59]} 5. d3 {[%clk 0:01:54]}  g6 {[%clk 0:02:58]} 6. O-O {[%clk 0:01:53]}  Bg7 {[%clk 0:02:58]} 7. Be3 {[%clk 0:01:48]}  Ng4 {[%clk 0:02:51]} 8. Bc1 {[%clk 0:01:47]}  O-O {[%clk 0:02:49]} 9. h3 {[%clk 0:01:47]}  Nf6 {[%clk 0:02:50]} 10. Nc3 {[%clk 0:01:45]}  Ne8 {[%clk 0:02:43]} 11. Be3 {[%clk 0:01:44]}  b6 {[%clk 0:02:43]} 12. Qd2 {[%clk 0:01:42]}  e5 {[%clk 0:02:38]} 13. Bh6 {[%clk 0:01:39]}  f6 {[%clk 0:02:38]} 14. Nh2 {[%clk 0:01:34]}  g5 {[%clk 0:02:35]} 15. Bxg7 {[%clk 0:01:33]}  Nxg7 {[%clk 0:02:36]} 16. a3 {[%clk 0:01:30]}  a5 {[%clk 0:02:22]} 17. Nd1 {[%clk 0:01:14]}  Ne6 {[%clk 0:02:15]} 18. Ne3 {[%clk 0:01:13]}  Nf4 {[%clk 0:02:16]} 19. Rfd1 {[%clk 0:01:06]}  Be6 {[%clk 0:01:57]} 20. Nhf1 {[%clk 0:01:05]}  Qe7 {[%clk 0:01:48]} 21. Ng3 {[%clk 0:01:03]}  Kh8 {[%clk 0:01:29]} 22. Ngf5 {[%clk 0:00:59]}  Qd7 {[%clk 0:01:25]} 23. Kh2 {[%clk 0:00:57]}  Rg8 {[%clk 0:01:13]} 24. g3 {[%clk 0:00:52]}  Ng6 {[%clk 0:01:10]} 25. Qe2 {[%clk 0:00:52]}  Qf7 {[%clk 0:01:06]} 26. Nh6 {[%clk 0:00:46]}  Nf4 {[%clk 0:01:05]} 1-0


[Site "https://www.chess.com"]

[Event "Titled Tuesday Blitz July 4 Early 2023"]
[White "Vaglio Munoz, Jaime"]
[Black "Czerw, Dawid"]
[WhiteFideId "6500145"]
[BlackFideId "1145746"]
[WhiteElo "2312"]
[BlackElo "2606"]
[Result "0-1"]
[Round "1"]
[TimeControl "180+2"]
[Date "2023.07.04"]
[WhiteClock "0:00:18"]
[BlackClock "0:00:16"]
[Board "164"]

1. Nf3 {[%clk 0:03:00]}  c5 {[%clk 0:02:59]} 2. c4 {[%clk 0:02:59]}  Nf6 {[%clk 0:02:56]} 3. b3 {[%clk 0:02:59]}  g6 {[%clk 0:02:55]} 4. Bb2 {[%clk 0:02:59]}  Bg7 {[%clk 0:02:55]} 5. g3 {[%clk 0:02:59]}  O-O {[%clk 0:02:55]} 6. Bg2 {[%clk 0:02:59]}  Nc6 {[%clk 0:02:55]} 7. O-O {[%clk 0:02:58]}  d6 {[%clk 0:02:53]} 8. d4 {[%clk 0:02:56]}  cxd4 {[%clk 0:02:51]} 9. Nxd4 {[%clk 0:02:57]}  Bd7 {[%clk 0:02:51]} 10. Nc2 {[%clk 0:02:48]}  a6 {[%clk 0:02:50]} 11. Nc3 {[%clk 0:02:46]}  Rb8 {[%clk 0:02:49]} 12. a4 {[%clk 0:02:45]}  Qc8 {[%clk 0:02:48]} 13. Re1 {[%clk 0:02:42]}  Bh3 {[%clk 0:02:40]} 14. Bh1 {[%clk 0:02:42]}  Qf5 {[%clk 0:02:39]} 15. Ne3 {[%clk 0:02:39]}  Qh5 {[%clk 0:02:29]} 16. Bf3 {[%clk 0:02:27]}  Qa5 {[%clk 0:02:11]} 17. g4 {[%clk 0:02:08]}  Ne5 {[%clk 0:02:05]} 18. Ncd5 {[%clk 0:01:48]}  Nxd5 {[%clk 0:01:56]} 19. Bxe5 {[%clk 0:01:43]}  Nxe3 {[%clk 0:01:49]} 20. fxe3 {[%clk 0:01:41]}  Qxe5 {[%clk 0:01:46]} 21. Ra2 {[%clk 0:01:38]}  Qxe3+ {[%clk 0:01:43]} 22. Kh1 {[%clk 0:01:36]}  Be5 {[%clk 0:01:41]} 23. Rg1 {[%clk 0:01:19]}  b5 {[%clk 0:01:17]} 24. axb5 {[%clk 0:01:04]}  axb5 {[%clk 0:01:16]} 25. Qd3 {[%clk 0:01:04]}  Qxd3 {[%clk 0:01:02]} 26. exd3 {[%clk 0:01:05]}  bxc4 {[%clk 0:01:02]} 27. bxc4 {[%clk 0:01:04]}  Rb3 {[%clk 0:00:56]} 28. Rd2 {[%clk 0:01:00]}  Bf4 {[%clk 0:00:50]} 29. Rdd1 {[%clk 0:00:59]}  Rb2 {[%clk 0:00:48]} 30. Bg2 {[%clk 0:00:52]}  Bxg2+ {[%clk 0:00:44]} 31. Rxg2 {[%clk 0:00:53]}  Rfb8 {[%clk 0:00:44]} 32. h4 {[%clk 0:00:50]}  Kg7 {[%clk 0:00:31]} 33. g5 {[%clk 0:00:49]}  h6 {[%clk 0:00:30]} 34. Rg4 {[%clk 0:00:47]}  hxg5 {[%clk 0:00:22]} 35. hxg5 {[%clk 0:00:46]}  Rb1 {[%clk 0:00:21]} 36. Rxb1 {[%clk 0:00:43]}  Rxb1+ {[%clk 0:00:22]} 37. Kg2 {[%clk 0:00:43]}  Bd2 {[%clk 0:00:18]} 38. Kf3 {[%clk 0:00:41]}  Re1 {[%clk 0:00:17]} 39. Rg2 {[%clk 0:00:38]}  Bc3 {[%clk 0:00:15]} 40. Rc2 {[%clk 0:00:36]}  Bd4 {[%clk 0:00:15]} 41. Kg4 {[%clk 0:00:35]}  Rg1+ {[%clk 0:00:15]} 42. Kf4 {[%clk 0:00:34]}  Be5+ {[%clk 0:00:14]} 43. Ke4 {[%clk 0:00:34]}  Rxg5 {[%clk 0:00:15]} 44. d4 {[%clk 0:00:33]}  Rg4+ {[%clk 0:00:15]} 45. Kf3 {[%clk 0:00:33]}  Rxd4 {[%clk 0:00:16]} 46. c5 {[%clk 0:00:33]}  dxc5 {[%clk 0:00:15]} 47. Rxc5 {[%clk 0:00:34]}  Bd6 {[%clk 0:00:16]} 48. Ra5 {[%clk 0:00:34]}  Rb4 {[%clk 0:00:16]} 49. Ra2 {[%clk 0:00:27]}  f5 {[%clk 0:00:15]} 50. Rg2 {[%clk 0:00:26]}  Kf6 {[%clk 0:00:16]} 51. Rd2 {[%clk 0:00:26]}  g5 {[%clk 0:00:16]} 52. Ke2 {[%clk 0:00:24]}  Rb3 {[%clk 0:00:16]} 53. Rd5 {[%clk 0:00:23]}  f4 {[%clk 0:00:16]} 54. Ra5 {[%clk 0:00:21]}  g4 {[%clk 0:00:16]} 55. Ra8 {[%clk 0:00:21]}  Rb2+ {[%clk 0:00:16]} 56. Kd3 {[%clk 0:00:21]}  g3 {[%clk 0:00:17]} 57. Rf8+ {[%clk 0:00:20]}  Ke6 {[%clk 0:00:17]} 58. Rg8 {[%clk 0:00:20]}  f3 {[%clk 0:00:17]} 59. Ke3 {[%clk 0:00:20]}  f2 {[%clk 0:00:17]} 60. Rf8 {[%clk 0:00:19]}  Rb1 {[%clk 0:00:17]} 61. Ke2 {[%clk 0:00:18]}  Re1+ {[%clk 0:00:18]} 62. Kd2 {[%clk 0:00:18]}  f1=Q {[%clk 0:00:17]} 63. Rxf1 {[%clk 0:00:18]}  Rxf1 {[%clk 0:00:18]} 64. Ke3 {[%clk 0:00:18]}  g2 {[%clk 0:00:18]} 65. Ke4 {[%clk 0:00:19]}  g1=Q {[%clk 0:00:17]} 66. Kd3 {[%clk 0:00:18]}  Rf4 {[%clk 0:00:16]} 0-1


[Site "https://www.chess.com"]

[Event "Titled Tuesday Blitz July 4 Early 2023"]
[White "Sokolov, Andrei"]
[Black "Vovk, Orest"]
[WhiteFideId "11600306"]
[BlackFideId "14113490"]
[WhiteElo "2310"]
[BlackElo "2604"]
[Result "0-1"]
[Round "1"]
[TimeControl "180+2"]
[Date "2023.07.04"]
[WhiteClock "0:00:00"]
[BlackClock "0:00:34"]
[Board "166"]

1. d4 {[%clk 0:02:57]}  h6 {[%clk 0:02:57]} 2. c4 {[%clk 0:02:57]}  g5 {[%clk 0:02:54]} 3. Nc3 {[%clk 0:02:54]}  Bg7 {[%clk 0:02:54]} 4. e4 {[%clk 0:02:53]}  c5 {[%clk 0:02:54]} 5. d5 {[%clk 0:02:49]}  Bxc3+ {[%clk 0:02:49]} 6. bxc3 {[%clk 0:02:50]}  d6 {[%clk 0:02:49]} 7. Bd3 {[%clk 0:02:37]}  Qa5 {[%clk 0:02:49]} 8. Bd2 {[%clk 0:02:33]}  Nd7 {[%clk 0:02:48]} 9. h4 {[%clk 0:02:31]}  Ne5 {[%clk 0:02:47]} 10. Qc2 {[%clk 0:01:50]}  g4 {[%clk 0:02:43]} 11. h5 {[%clk 0:01:50]}  Nf6 {[%clk 0:02:43]} 12. Ne2 {[%clk 0:01:47]}  Bd7 {[%clk 0:02:42]} 13. Nc1 {[%clk 0:01:08]}  Ba4 {[%clk 0:02:39]} 14. Qb2 {[%clk 0:01:08]}  Qb6 {[%clk 0:02:29]} 15. Rb1 {[%clk 0:00:36]}  Qxb2 {[%clk 0:02:10]} 16. Rxb2 {[%clk 0:00:36]}  O-O-O {[%clk 0:02:11]} 17. Ke2 {[%clk 0:00:29]}  b6 {[%clk 0:02:07]} 18. a3 {[%clk 0:00:19]}  Rdg8 {[%clk 0:02:06]} 19. g3 {[%clk 0:00:18]}  Nfd7 {[%clk 0:01:56]} 20. Bf4 {[%clk 0:00:18]}  f6 {[%clk 0:01:52]} 21. Ke3 {[%clk 0:00:17]}  Nxd3 {[%clk 0:01:47]} 22. Nxd3 {[%clk 0:00:16]}  Ne5 {[%clk 0:01:48]} 23. Bxe5 {[%clk 0:00:14]}  fxe5 {[%clk 0:01:48]} 24. Rhb1 {[%clk 0:00:13]}  Rf8 {[%clk 0:01:44]} 25. Rh1 {[%clk 0:00:12]}  Rf3+ {[%clk 0:01:42]} 26. Ke2 {[%clk 0:00:12]}  Rhf8 {[%clk 0:01:41]} 27. Rh4 {[%clk 0:00:13]}  Bd7 {[%clk 0:01:38]} 28. Rd2 {[%clk 0:00:10]}  Rg8 {[%clk 0:01:25]} 29. Kd1 {[%clk 0:00:09]}  Ba4+ {[%clk 0:01:17]} 30. Kc1 {[%clk 0:00:09]}  Bb3 {[%clk 0:01:12]} 31. Kb2 {[%clk 0:00:07]}  Bxc4 {[%clk 0:01:11]} 32. Ne1 {[%clk 0:00:06]}  Rf6 {[%clk 0:01:09]} 33. Ng2 {[%clk 0:00:04]}  Bf1 {[%clk 0:00:56]} 34. Ne3 {[%clk 0:00:04]}  Bh3 {[%clk 0:00:56]} 35. Rc2 {[%clk 0:00:03]}  Rgf8 {[%clk 0:00:54]} 36. Nxg4 {[%clk 0:00:03]}  Bxg4 {[%clk 0:00:53]} 37. Rxg4 {[%clk 0:00:04]}  Rxf2 {[%clk 0:00:54]} 38. Rg6 {[%clk 0:00:03]}  Rxc2+ {[%clk 0:00:46]} 39. Kxc2 {[%clk 0:00:04]}  Rf3 {[%clk 0:00:46]} 40. Kb3 {[%clk 0:00:04]}  b5 {[%clk 0:00:45]} 41. Rxh6 {[%clk 0:00:04]}  Rxg3 {[%clk 0:00:45]} 42. Rg6 {[%clk 0:00:03]}  Rh3 {[%clk 0:00:44]} 43. h6 {[%clk 0:00:04]}  a5 {[%clk 0:00:40]} 44. Kc2 {[%clk 0:00:04]}  Kd7 {[%clk 0:00:38]} 45. Rg7 {[%clk 0:00:03]}  Rh2+ {[%clk 0:00:36]} 46. Kd3 {[%clk 0:00:03]}  Rxh6 {[%clk 0:00:37]} 47. Rg8 {[%clk 0:00:03]}  Rh3+ {[%clk 0:00:36]} 48. Kc2 {[%clk 0:00:03]}  Rh2+ {[%clk 0:00:36]} 49. Kd3 {[%clk 0:00:03]}  c4+ {[%clk 0:00:35]} 50. Ke3 {[%clk 0:00:02]}  Rc2 {[%clk 0:00:35]} 51. Rb8 {[%clk 0:00:02]}  Rxc3+ {[%clk 0:00:35]} 52. Kd2 {[%clk 0:00:02]}  Rb3 {[%clk 0:00:34]} 53. Rxb5 {[%clk 0:00:02]}  Rxb5 {[%clk 0:00:34]} 54. a4 {[%clk 0:00:03]}  Rb4 {[%clk 0:00:34]} 55. Kc3 {[%clk 0:00:00]}  Rxa4 {[%clk 0:00:34]} 0-1


[Site "https://www.chess.com"]

[Event "Titled Tuesday Blitz July 4 Early 2023"]
[White "Subelj, Jan"]
[Black "Acikel, Mert"]
[WhiteFideId "14618583"]
[BlackFideId "12956465"]
[WhiteElo "2602"]
[BlackElo "2306"]
[Result "1-0"]
[Round "1"]
[TimeControl "180+2"]
[Date "2023.07.04"]
[WhiteClock "0:01:47"]
[BlackClock "0:00:31"]
[Board "167"]

1. e4 {[%clk 0:02:59]}  e5 {[%clk 0:02:56]} 2. Nf3 {[%clk 0:02:57]}  Nc6 {[%clk 0:02:55]} 3. d3 {[%clk 0:02:52]}  Nf6 {[%clk 0:02:50]} 4. Nbd2 {[%clk 0:02:51]}  Bc5 {[%clk 0:02:47]} 5. Be2 {[%clk 0:02:46]}  O-O {[%clk 0:02:45]} 6. O-O {[%clk 0:02:43]}  d5 {[%clk 0:02:35]} 7. c3 {[%clk 0:02:36]}  h6 {[%clk 0:02:33]} 8. Qc2 {[%clk 0:02:29]}  a5 {[%clk 0:02:20]} 9. b3 {[%clk 0:02:22]}  Re8 {[%clk 0:02:13]} 10. Bb2 {[%clk 0:02:19]}  Bg4 {[%clk 0:02:02]} 11. h3 {[%clk 0:02:18]}  Bh5 {[%clk 0:01:49]} 12. Rfe1 {[%clk 0:02:15]}  Bg6 {[%clk 0:01:48]} 13. a3 {[%clk 0:02:11]}  Qd7 {[%clk 0:01:43]} 14. Rad1 {[%clk 0:02:08]}  Bb6 {[%clk 0:01:26]} 15. Bf1 {[%clk 0:01:59]}  Rad8 {[%clk 0:01:25]} 16. b4 {[%clk 0:01:51]}  axb4 {[%clk 0:01:11]} 17. axb4 {[%clk 0:01:52]}  Ra8 {[%clk 0:00:44]} 18. b5 {[%clk 0:01:51]}  Nb8 {[%clk 0:00:43]} 19. c4 {[%clk 0:01:51]}  c6 {[%clk 0:00:41]} 20. Nxe5 {[%clk 0:01:49]}  Qd6 {[%clk 0:00:31]} 21. Nxg6 {[%clk 0:01:48]}  fxg6 {[%clk 0:00:31]} 22. e5 {[%clk 0:01:47]} 1-0


[Site "https://www.chess.com"]

[Event "Titled Tuesday Blitz July 4 Early 2023"]
[White "MKlose11"]
[Black "Rodriguez Santiago, Jaime"]
[BlackFideId "3100898"]
[WhiteElo "2601"]
[BlackElo "2296"]
[Result "1-0"]
[Round "1"]
[TimeControl "180+2"]
[Date "2023.07.04"]
[WhiteClock "0:01:01"]
[BlackClock "0:00:27"]
[Board "169"]

1. e4 {[%clk 0:02:57]}  c6 {[%clk 0:02:57]} 2. Nc3 {[%clk 0:02:56]}  d5 {[%clk 0:02:57]} 3. g3 {[%clk 0:02:55]}  dxe4 {[%clk 0:02:57]} 4. Nxe4 {[%clk 0:02:55]}  Nf6 {[%clk 0:02:58]} 5. Bg2 {[%clk 0:02:54]}  Bf5 {[%clk 0:02:56]} 6. d3 {[%clk 0:02:49]}  e6 {[%clk 0:02:52]} 7. Ne2 {[%clk 0:02:48]}  Be7 {[%clk 0:02:49]} 8. O-O {[%clk 0:02:48]}  O-O {[%clk 0:02:49]} 9. N2c3 {[%clk 0:02:48]}  Nbd7 {[%clk 0:02:46]} 10. Re1 {[%clk 0:02:48]}  h6 {[%clk 0:02:35]} 11. a3 {[%clk 0:02:48]}  a5 {[%clk 0:02:31]} 12. Be3 {[%clk 0:02:46]}  Rc8 {[%clk 0:02:20]} 13. Rb1 {[%clk 0:02:46]}  b5 {[%clk 0:02:19]} 14. Bf4 {[%clk 0:02:45]}  Nxe4 {[%clk 0:02:11]} 15. Nxe4 {[%clk 0:02:35]}  e5 {[%clk 0:02:08]} 16. Bd2 {[%clk 0:02:32]}  Be6 {[%clk 0:02:06]} 17. b4 {[%clk 0:02:19]}  a4 {[%clk 0:02:02]} 18. Qe2 {[%clk 0:02:17]}  f5 {[%clk 0:01:59]} 19. Nc3 {[%clk 0:02:14]}  Bd6 {[%clk 0:01:56]} 20. f4 {[%clk 0:02:02]}  Be7 {[%clk 0:01:46]} 21. fxe5 {[%clk 0:01:49]}  Nb6 {[%clk 0:01:30]} 22. Be3 {[%clk 0:01:44]}  Nd5 {[%clk 0:01:29]} 23. Nxd5 {[%clk 0:01:43]}  Bxd5 {[%clk 0:01:30]} 24. d4 {[%clk 0:01:41]}  Bc4 {[%clk 0:01:28]} 25. Qd2 {[%clk 0:01:37]}  Bd5 {[%clk 0:01:18]} 26. Rf1 {[%clk 0:01:37]}  Bxg2 {[%clk 0:01:17]} 27. Qxg2 {[%clk 0:01:36]}  Qd7 {[%clk 0:01:17]} 28. Rf2 {[%clk 0:01:35]}  Qe6 {[%clk 0:01:16]} 29. c3 {[%clk 0:01:31]}  Kh7 {[%clk 0:01:15]} 30. Rbf1 {[%clk 0:01:28]}  g6 {[%clk 0:01:14]} 31. Bc1 {[%clk 0:01:28]}  Qb3 {[%clk 0:01:12]} 32. Qf3 {[%clk 0:01:27]}  Rf7 {[%clk 0:01:05]} 33. Qd3 {[%clk 0:01:27]}  Rcf8 {[%clk 0:01:04]} 34. h4 {[%clk 0:01:27]}  Kh8 {[%clk 0:01:01]} 35. h5 {[%clk 0:01:26]}  g5 {[%clk 0:01:01]} 36. Bd2 {[%clk 0:01:21]}  Qe6 {[%clk 0:00:59]} 37. Rf3 {[%clk 0:01:15]}  f4 {[%clk 0:00:53]} 38. gxf4 {[%clk 0:01:13]}  g4 {[%clk 0:00:54]} 39. f5 {[%clk 0:01:10]}  Qd5 {[%clk 0:00:47]} 40. Rg3 {[%clk 0:01:07]}  Rg8 {[%clk 0:00:47]} 41. f6 {[%clk 0:01:06]}  Bf8 {[%clk 0:00:46]} 42. Rf4 {[%clk 0:01:01]}  Qb3 {[%clk 0:00:35]} 43. Rfxg4 {[%clk 0:01:00]}  Rxg4 {[%clk 0:00:35]} 44. Rxg4 {[%clk 0:01:01]}  Qxa3 {[%clk 0:00:27]} 45. Qg6 {[%clk 0:01:01]} 1-0


[Site "https://www.chess.com"]

[Event "Titled Tuesday Blitz July 4 Early 2023"]
[White "Kuchava, Ana"]
[Black "Marosi, Levente"]
[WhiteFideId "13605348"]
[BlackFideId "747181"]
[WhiteElo "2292"]
[BlackElo "2599"]
[Result "0-1"]
[Round "1"]
[TimeControl "180+2"]
[Date "2023.07.04"]
[WhiteClock "0:00:00"]
[BlackClock "0:00:53"]
[Board "170"]

1. d4 {[%clk 0:03:00]}  Nf6 {[%clk 0:02:59]} 2. Nf3 {[%clk 0:02:57]}  g6 {[%clk 0:02:59]} 3. c4 {[%clk 0:02:55]}  Bg7 {[%clk 0:03:00]} 4. Nc3 {[%clk 0:02:54]}  O-O {[%clk 0:02:58]} 5. e4 {[%clk 0:02:54]}  d6 {[%clk 0:02:59]} 6. Be2 {[%clk 0:02:52]}  e5 {[%clk 0:02:59]} 7. O-O {[%clk 0:02:51]}  Nc6 {[%clk 0:03:00]} 8. Be3 {[%clk 0:02:48]}  Ng4 {[%clk 0:02:59]} 9. Bg5 {[%clk 0:02:45]}  f6 {[%clk 0:02:59]} 10. Bc1 {[%clk 0:02:43]}  f5 {[%clk 0:02:49]} 11. d5 {[%clk 0:02:39]}  Ne7 {[%clk 0:02:47]} 12. Ng5 {[%clk 0:02:37]}  Nf6 {[%clk 0:02:44]} 13. exf5 {[%clk 0:02:28]}  Nxf5 {[%clk 0:02:42]} 14. Bd3 {[%clk 0:02:19]}  Qe7 {[%clk 0:02:18]} 15. Nge4 {[%clk 0:02:11]}  Nxe4 {[%clk 0:02:15]} 16. Nxe4 {[%clk 0:02:11]}  Nd4 {[%clk 0:02:02]} 17. Bg5 {[%clk 0:02:04]}  Qf7 {[%clk 0:02:01]} 18. Qd2 {[%clk 0:01:57]}  Bf5 {[%clk 0:01:55]} 19. Rae1 {[%clk 0:01:45]}  Qd7 {[%clk 0:01:55]} 20. Bh6 {[%clk 0:01:23]}  Rae8 {[%clk 0:01:52]} 21. b3 {[%clk 0:00:42]}  b6 {[%clk 0:01:52]} 22. Bb1 {[%clk 0:00:37]}  a5 {[%clk 0:01:50]} 23. Ng3 {[%clk 0:00:29]}  Bxb1 {[%clk 0:01:43]} 24. Rxb1 {[%clk 0:00:30]}  Bxh6 {[%clk 0:01:39]} 25. Qxh6 {[%clk 0:00:31]}  Qg7 {[%clk 0:01:40]} 26. Qxg7+ {[%clk 0:00:27]}  Kxg7 {[%clk 0:01:41]} 27. Ne4 {[%clk 0:00:25]}  Rf4 {[%clk 0:01:39]} 28. f3 {[%clk 0:00:22]}  h6 {[%clk 0:01:39]} 29. a3 {[%clk 0:00:18]}  Ra8 {[%clk 0:01:38]} 30. Rb2 {[%clk 0:00:15]}  Rff8 {[%clk 0:01:31]} 31. Kf2 {[%clk 0:00:15]}  g5 {[%clk 0:01:31]} 32. Ke3 {[%clk 0:00:15]}  Kg6 {[%clk 0:01:32]} 33. Rfb1 {[%clk 0:00:13]}  h5 {[%clk 0:01:32]} 34. h3 {[%clk 0:00:13]}  g4 {[%clk 0:01:28]} 35. hxg4 {[%clk 0:00:14]}  hxg4 {[%clk 0:01:29]} 36. Rh1 {[%clk 0:00:13]}  Rh8 {[%clk 0:01:26]} 37. Rxh8 {[%clk 0:00:11]}  Rxh8 {[%clk 0:01:27]} 38. fxg4 {[%clk 0:00:12]}  Rf8 {[%clk 0:01:21]} 39. b4 {[%clk 0:00:10]}  axb4 {[%clk 0:01:22]} 40. axb4 {[%clk 0:00:11]}  Ra8 {[%clk 0:01:22]} 41. c5 {[%clk 0:00:11]}  Ra3+ {[%clk 0:01:22]} 42. Kf2 {[%clk 0:00:11]}  bxc5 {[%clk 0:01:00]} 43. bxc5 {[%clk 0:00:12]}  dxc5 {[%clk 0:01:01]} 44. Nxc5 {[%clk 0:00:12]}  Ra5 {[%clk 0:01:01]} 45. Ne6 {[%clk 0:00:09]}  Rxd5 {[%clk 0:01:01]} 46. Nxc7 {[%clk 0:00:09]}  Rc5 {[%clk 0:01:01]} 47. Na6 {[%clk 0:00:09]}  Rc4 {[%clk 0:01:01]} 48. Nb4 {[%clk 0:00:09]}  Ne6 {[%clk 0:00:59]} 49. Nd3 {[%clk 0:00:09]}  Kf6 {[%clk 0:00:57]} 50. g5+ {[%clk 0:00:08]}  Nxg5 {[%clk 0:00:57]} 51. Rb6+ {[%clk 0:00:07]}  Kf5 {[%clk 0:00:57]} 52. Rb5 {[%clk 0:00:07]}  Re4 {[%clk 0:00:56]} 53. Nc5 {[%clk 0:00:07]}  Rf4+ {[%clk 0:00:56]} 54. Ke2 {[%clk 0:00:07]}  Rg4 {[%clk 0:00:55]} 55. Kf2 {[%clk 0:00:07]}  Rd4 {[%clk 0:00:52]} 56. Nb3 {[%clk 0:00:06]}  Ne4+ {[%clk 0:00:52]} 57. Kf3 {[%clk 0:00:05]}  Rd3+ {[%clk 0:00:52]} 58. Ke2 {[%clk 0:00:04]}  Rg3 {[%clk 0:00:51]} 59. Kf1 {[%clk 0:00:04]}  Rxb3 {[%clk 0:00:49]} 60. Rxb3 {[%clk 0:00:03]}  Nd2+ {[%clk 0:00:50]} 61. Ke2 {[%clk 0:00:04]}  Nxb3 {[%clk 0:00:51]} 62. Ke3 {[%clk 0:00:04]}  Nd4 {[%clk 0:00:52]} 63. g4+ {[%clk 0:00:03]}  Ke6 {[%clk 0:00:52]} 64. Ke4 {[%clk 0:00:04]}  Nc6 {[%clk 0:00:52]} 65. g5 {[%clk 0:00:00]}  Ne7 {[%clk 0:00:53]} 0-1


[Site "https://www.chess.com"]